[Event "Israel Championship 2021"]
[Site "Haifa"]
[Date "2021.03.13"]
[Round "7.12"]
[White "Kupervaser, Erez"]
[Black "Gruenfeld, Yehuda"]
[Result "1-0"]
[ECO "B52"]
[WhiteElo "2371"]
[BlackElo "2412"]
[Annotator "NA"]
[PlyCount "69"]
[EventDate "2021.01.10"]
[EventType "swiss"]
[EventCountry "ISR"]
[SourceTitle "playchess.com"]
[Source "ChessBase"]
[SourceQuality "1"]
[TimeControl "40/5400+30:3600+30"]

1. e4 {[%emt 0:01:46]} c5 {[%emt 0:00:00]} 2. Nf3 {[%emt 0:00:07]} d6 {[%emt 0:00:00]} 3. Bb5+ {[%emt 0:00:34]} Bd7 {[%emt 0:00:32]} 4. Bxd7+ {[%emt 0:00:13]} Qxd7 {[%emt 0:00:07]} 5. O-O {[%emt 0:00:10]} Nf6 {[%emt 0:00:07]} 6. e5 {[%emt 0:02:27]} dxe5 {[%emt 0:00:05]} 7. Nxe5 {[%emt 0:00:06]} Qc8 {[%emt 0:00:11]} 8. a4 {[%emt 0:01:57]} Nc6 {[%emt 0:01:49]} 9. Nc4 {[%emt 0:00:12]} e6 {[%emt 0:00:18]} 10. Re1 {[%emt 0:00:09]} Be7 {[%emt 0:00:06]} 11. Ra3 {[%emt 0:03:41]} O-O {[%emt 0:00:46]} 12. Rg3 {[%emt 0:00:08]} Rd8 {[%emt 0:13:51]} 13. Nc3 {[%emt 0:03:05]} Nd4 {[%emt 0:14:43]} 14. d3 {[%emt 0:02:46]} Qc7 {[%emt 0:04:17]} 15. Bg5 {[%emt 0:12:16]} g6 {[%emt 0:15:32]} 16. Qc1 {[%emt 0:08:16]} Nh5 {[%emt 0:10:51]} 17. Bxe7 {[%emt 0:04:26]} Qxe7 {[%emt 0:00:42]} 18. Rh3 {[%emt 0:02:12]} f5 {[%emt 0:03:45]} 19. Nb5 {[%emt 0:07:21]} Nxb5 {[%emt 0:04:42]} 20. axb5 {[%emt 0:00:08]} Re8 {[%emt 0:03:01]} 21. Qe3 {[%emt 0:06:34]} a6 {[%emt 0:02:29]} 22. Nb6 {[%emt 0:02:20]} Rad8 {[%emt 0:00:22]} 23. bxa6 {[%emt 0:00:35]} bxa6 {[%emt 0:01:53]} 24. Qe5 {[%emt 0:06:38]} Ng7 {[%emt 0:04:28]} 25. Rhe3 {[%emt 0:01:22]} Qd6 {[%emt 0:04:37]} 26. Nc4 {[%emt 0:01:29]} Qc6 {[%emt 0:00:57]} 27. Qc3 {[%emt 0:04:08]} Rd5 {[%emt 0:03:45]} 28. Ra1 {[%emt 0:01:05]} Re7 {[%emt 0:02:04]} 29. Ree1 {[%emt 0:03:34]} Nh5 {[%emt 0:01:59]} 30. Ra5 {[%emt 0:01:59]} f4 {[%emt 0:01:19]} 31. Nd2 {[%emt 0:03:45]} Ra7 {[%emt 0:02:59]} 32. b3 {[%emt 0:01:11]} f3 {[%emt 0:01:20]} 33. g3 {[%emt 0:01:17]} Rf5 {[%emt 0:00:49]} 34. Ne4 {[%emt 0:00:51]} Kf7 {[%emt 0:00:26]} 35. g4 {[%emt 0:02:19]} 1-0

[Event "Israel Championship 2021"]
[Site "Haifa"]
[Date "2021.03.13"]
[Round "7.13"]
[White "Kochavi, Ori"]
[Black "Shohat, Yotam"]
[Result "1-0"]
[ECO "E61"]
[WhiteElo "2273"]
[BlackElo "2371"]
[Annotator "ChessBase"]
[PlyCount "109"]
[EventDate "2021.01.10"]
[EventType "swiss"]
[EventCountry "ISR"]
[SourceTitle "playchess.com"]
[Source "ChessBase"]
[SourceQuality "1"]
[TimeControl "40/5400+30:3600+30"]

1. Nf3 {[%emt 0:00:33]} Nf6 {[%emt 0:01:00]} 2. e3 {[%emt 0:00:11]} g6 {[%emt 0:00:09]} 3. b4 {[%emt 0:00:03]} Bg7 {[%emt 0:00:05]} 4. Bb2 {[%emt 0:00:02]} O-O {[%emt 0:00:07]} 5. c4 {[%emt 0:00:25]} d6 {[%emt 0:00:05]} 6. d4 {[%emt 0:00:04]} Nbd7 {[%emt 0:00:12]} 7. Be2 {[%emt 0:00:22]} e5 {[%emt 0:05:45]} 8. Nc3 {[%emt 0:00:13]} Re8 {[%emt 0:00:41]} 9. O-O {[%emt 0:00:06]} e4 {[%emt 0:01:52]} 10. Nd2 {[%emt 0:00:03]} Nf8 {[%emt 0:00:21]} 11. Qc2 {[%emt 0:00:10]} Bf5 {[%emt 0:00:51]} 12. a4 {[%emt 0:00:03]} h5 {[%emt 0:00:34]} 13. a5 {[%emt 0:00:38]} a6 {[%emt 0:00:05]} 14. b5 {[%emt 0:01:14]} N8h7 {[%emt 0:01:26]} 15. c5 {[%emt 0:07:42]} d5 {[%emt 0:25:45]} 16. c6 {[%emt 0:03:27]} bxc6 {[%emt 0:00:20]} 17. bxa6 {[%emt 0:00:02]} c5 {[%emt 0:04:09]} 18. Bb5 {[%emt 0:21:55]} Re6 {[%emt 0:32:09]} 19. Nb3 {[%emt 0:15:45]} Ng4 {[%emt 0:08:23]} 20. h3 {[%emt 0:11:10]} Ng5 {[%emt 0:08:27]} 21. Ne2 {[%emt 0:22:44]} Bh6 {[%emt 0:05:20]} 22. Ng3 {[%emt 0:01:42]} Nxh3+ {[%emt 0:00:29]} 23. gxh3 {[%emt 0:00:03]} Qh4 {[%emt 0:00:08]} 24. hxg4 {[%emt 0:00:47]} Bxg4 {[%emt 0:00:11]} 25. Rfe1 {[%emt 0:04:06]} c4 {[%emt 0:00:22]} 26. Bxc4 {[%emt 0:02:47]} dxc4 {[%emt 0:00:02]} 27. Qxc4 {[%emt 0:00:04]} Rf6 {[%emt 0:01:51]} 28. Qf1 {[%emt 0:02:31]} Bh3 {[%emt 0:01:41]} 29. Qe2 {[%emt 0:01:13]} Bg4 {[%emt 0:00:06]} 30. Qf1 {[%emt 0:00:03]} Bh3 {[%emt 0:01:12]} 31. Qe2 {[%emt 0:00:18]} Bg4 {[%emt 0:00:05]} 32. Qf1 {[%emt 0:00:41]} Bf3 {[%emt 0:00:51]} 33. Rac1 {[%emt 0:02:24]} Qg4 {[%emt 0:00:50]} 34. Kh2 {[%emt 0:00:03]} h4 {[%emt 0:00:23]} 35. Qh3 {[%emt 0:00:32]} hxg3+ {[%emt 0:00:14]} 36. fxg3 {[%emt 0:00:46]} Rf5 {[%emt 0:01:06]} 37. Rc5 {[%emt 0:00:10]} Qxh3+ {[%emt 0:00:33]} 38. Kxh3 {[%emt 0:00:04]} Rxa6 {[%emt 0:00:11]} 39. g4 {[%emt 0:00:32]} Rg5 {[%emt 0:00:47]} 40. Rxg5 {[%emt 0:00:14]} Bxg5 {[%emt 0:00:01]} 41. d5 {[%emt 1:02:57]} f5 {[%emt 0:31:49]} 42. Be5 {[%emt 0:00:00]} Bxg4+ {[%emt 0:10:02]} 43. Kg3 {[%emt 0:00:00]} Ra7 {[%emt 0:01:17]} 44. Bd4 {[%emt 0:00:00]} Ra8 {[%emt 0:13:12]} 45. Rc1 {[%emt 0:00:00]} Be7 {[%emt 0:01:07]} 46. Be5 {[%emt 0:00:00]} Bd6 {[%emt 0:00:08]} 47. Bxd6 {[%emt 0:00:00]} cxd6 {[%emt 0:00:02]} 48. Kf4 {[%emt 0:00:00]} Kf7 {[%emt 0:01:51]} 49. Kg5 {[%emt 0:00:00]} Ra7 {[%emt 0:00:07]} 50. Rc6 {[%emt 0:00:00]} Bd1 {[%emt 0:01:01]} 51. Nd4 {[%emt 0:00:00]} Rxa5 {[%emt 0:00:55]} 52. Rc7+ {[%emt 0:00:00]} Ke8 {[%emt 0:00:22]} 53. Kf6 {[%emt 0:00:00]} Ba4 {[%emt 0:00:10]} 54. Ne6 {[%emt 0:00:00]} Bd7 {[%emt 0:00:15]} 55. Rb7 {[%emt 0:00:00]} 1-0

[Event "Israel Championship 2021"]
[Site "Haifa"]
[Date "2021.03.13"]
[Round "7.14"]
[White "Efroimski, Marsel"]
[Black "Parnes, Nadav"]
[Result "1-0"]
[ECO "B08"]
[WhiteElo "2357"]
[BlackElo "2273"]
[Annotator "NA"]
[PlyCount "73"]
[EventDate "2021.01.10"]
[EventType "swiss"]
[EventCountry "ISR"]
[SourceTitle "playchess.com"]
[Source "ChessBase"]
[SourceQuality "1"]
[TimeControl "40/5400+30:3600+30"]

1. e4 {[%emt 0:02:33]} d6 {[%emt 0:00:00]} 2. d4 {[%emt 0:00:03]} Nf6 {[%emt 0:00:00]} 3. Nc3 {[%emt 0:00:03]} g6 {[%emt 0:00:00]} 4. Bf4 {[%emt 0:00:02]} c6 {[%emt 0:00:09]} 5. Qd2 {[%emt 0:00:22]} Nbd7 {[%emt 0:00:12]} 6. Nf3 {[%emt 0:06:14]} Bg7 {[%emt 0:01:17]} 7. Bh6 {[%emt 0:00:12]} O-O {[%emt 0:01:28]} 8. h4 {[%emt 0:01:05]} e5 {[%emt 0:02:29]} 9. h5 {[%emt 0:03:43]} Nxh5 {[%emt 0:04:16]} 10. O-O-O {[%emt 0:00:05]} Bxh6 {[%emt 0:12:28]} 11. Qxh6 {[%emt 0:00:10]} Qf6 {[%emt 0:00:14]} 12. dxe5 {[%emt 0:07:07]} dxe5 {[%emt 0:02:08]} 13. Rxd7 {[%emt 0:02:37]} Bxd7 {[%emt 0:01:15]} 14. Rxh5 {[%emt 0:00:01]} Qf4+ {[%emt 0:04:14]} 15. Qxf4 {[%emt 0:00:10]} exf4 {[%emt 0:00:03]} 16. Rh1 {[%emt 0:00:04]} f6 {[%emt 0:01:39]} 17. Bd3 {[%emt 0:05:03]} Kg7 {[%emt 0:13:32]} 18. Ne2 {[%emt 0:00:34]} g5 {[%emt 0:01:02]} 19. e5 {[%emt 0:00:11]} h6 {[%emt 0:00:30]} 20. exf6+ {[%emt 0:01:04]} Rxf6 {[%emt 0:02:11]} 21. Nxg5 {[%emt 0:00:06]} Bg4 {[%emt 0:13:20]} 22. f3 {[%emt 0:04:30]} hxg5 {[%emt 0:04:49]} 23. Rh7+ {[%emt 0:00:04]} Kg8 {[%emt 0:00:09]} 24. fxg4 {[%emt 0:00:02]} b5 {[%emt 0:01:03]} 25. Rh5 {[%emt 0:00:16]} Kf7 {[%emt 0:00:10]} 26. Rxg5 {[%emt 0:00:24]} Rg8 {[%emt 0:00:15]} 27. Rxg8 {[%emt 0:00:21]} Kxg8 {[%emt 0:00:05]} 28. Bf5 {[%emt 0:00:11]} Rh6 {[%emt 0:01:19]} 29. Nxf4 {[%emt 0:00:33]} Rh1+ {[%emt 0:00:06]} 30. Kd2 {[%emt 0:00:02]} Rb1 {[%emt 0:00:34]} 31. Nd3 {[%emt 0:00:47]} c5 {[%emt 0:00:44]} 32. b3 {[%emt 0:02:45]} Rg1 {[%emt 0:00:54]} 33. Nxc5 {[%emt 0:02:56]} Rxg2+ {[%emt 0:00:05]} 34. Kc3 {[%emt 0:00:01]} a5 {[%emt 0:00:51]} 35. Nb7 {[%emt 0:00:42]} Rg3+ {[%emt 0:00:34]} 36. Kd4 {[%emt 0:00:39]} a4 {[%emt 0:00:20]} 37. Ke4 {[%emt 1:02:48]} 1-0

[Event "Israel Championship 2021"]
[Site "Haifa"]
[Date "2021.03.13"]
[Round "7.15"]
[White "Stolyarsky, Yegor"]
[Black "Aizenberg, Benny"]
[Result "0-1"]
[ECO "A57"]
[WhiteElo "2063"]
[BlackElo "2307"]
[Annotator "NA"]
[PlyCount "92"]
[EventDate "2021.01.10"]
[EventType "swiss"]
[EventCountry "ISR"]
[SourceTitle "playchess.com"]
[Source "ChessBase"]
[SourceQuality "1"]
[TimeControl "40/5400+30:3600+30"]

1. d4 {[%emt 0:00:04]} Nf6 {[%emt 0:00:00]} 2. Nf3 {[%emt 0:00:14]} c5 {[%emt 0:00:00]} 3. d5 {[%emt 0:00:13]} b5 {[%emt 0:00:00]} 4. c4 {[%emt 0:00:14]} g6 {[%emt 0:00:00]} 5. cxb5 {[%emt 0:00:20]} a6 {[%emt 0:00:00]} 6. b6 {[%emt 0:00:12]} d6 {[%emt 0:00:00]} 7. Nc3 {[%emt 0:00:21]} Nbd7 {[%emt 0:00:00]} 8. e4 {[%emt 0:00:43]} Bg7 {[%emt 0:00:02]} 9. Be2 {[%emt 0:00:43]} O-O {[%emt 0:00:27]} 10. a4 {[%emt 0:00:15]} a5 {[%emt 0:00:41]} 11. Nd2 {[%emt 0:01:15]} Nxb6 {[%emt 0:01:14]} 12. O-O {[%emt 0:00:53]} Ba6 {[%emt 0:01:58]} 13. Nb5 {[%emt 0:00:28]} Rb8 {[%emt 0:01:05]} 14. Ra2 {[%emt 0:02:36]} Na8 {[%emt 0:09:57]} 15. b3 {[%emt 0:04:23]} Nc7 {[%emt 0:01:57]} 16. Na7 {[%emt 0:00:28]} Bxe2 {[%emt 0:01:12]} 17. Qxe2 {[%emt 0:00:07]} Qd7 {[%emt 0:03:27]} 18. Nc6 {[%emt 0:00:29]} Ra8 {[%emt 0:00:14]} 19. Nc4 {[%emt 0:00:30]} Ncxd5 {[%emt 0:00:30]} 20. exd5 {[%emt 0:03:48]} Nxd5 {[%emt 0:03:36]} 21. Nxe7+ {[%emt 0:00:30]} Nxe7 {[%emt 0:00:30]} 22. Nb6 {[%emt 0:01:28]} Qb7 {[%emt 0:09:42]} 23. Nxa8 {[%emt 0:00:51]} Nf5 {[%emt 0:01:20]} 24. Bb2 {[%emt 0:03:50]} Rxa8 {[%emt 0:02:18]} 25. Bxg7 {[%emt 0:00:21]} Kxg7 {[%emt 0:00:12]} 26. Qc4 {[%emt 0:00:30]} Nd4 {[%emt 0:00:30]} 27. Rd1 {[%emt 0:00:30]} Re8 {[%emt 0:00:30]} 28. Rad2 {[%emt 0:00:30]} Re4 {[%emt 0:00:30]} 29. Rxd4 {[%emt 0:00:30]} cxd4 {[%emt 0:00:30]} 30. f3 {[%emt 0:06:06]} Rf4 {[%emt 0:23:43]} 31. g3 {[%emt 0:05:01]} Qxf3 {[%emt 0:06:23]} 32. Qd3 {[%emt 0:00:55]} Qg4 {[%emt 0:07:47]} 33. b4 {[%emt 0:01:40]} axb4 {[%emt 0:02:16]} 34. h3 {[%emt 0:00:30]} Qg5 {[%emt 0:00:30]} 35. a5 {[%emt 0:00:30]} Rf6 {[%emt 0:00:30]} 36. Ra1 {[%emt 0:00:30]} Qd5 {[%emt 0:00:30]} 37. a6 {[%emt 0:00:30]} Rf3 {[%emt 0:00:30]} 38. Qe2 {[%emt 0:00:30]} Rxg3+ {[%emt 0:00:30]} 39. Kh2 {[%emt 0:04:36]} Re3 {[%emt 0:08:26]} 40. Qf2 {[%emt 0:00:30]} Qe5+ {[%emt 0:00:30]} 41. Kg1 {[%emt 1:00:30]} Rg3+ {[%emt 1:00:30]} 42. Kf1 {[%emt 0:00:30]} Qb5+ {[%emt 0:00:30]} 43. Qe2 {[%emt 0:00:30]} Rf3+ {[%emt 0:00:30]} 44. Ke1 {[%emt 0:00:30]} Re3 {[%emt 0:00:30]} 45. Qxe3 {[%emt 0:00:30]} dxe3 {[%emt 0:00:30]} 46. a7 {[%emt 0:00:30]} Qd5 {[%emt 0:00:30]} 0-1

[Event "Israel Championship 2021"]
[Site "Haifa"]
[Date "2021.03.13"]
[Round "7.16"]
[White "Ben Artzi, Ido"]
[Black "Katz, Kiril"]
[Result "1-0"]
[ECO "B07"]
[WhiteElo "2368"]
[BlackElo "1957"]
[Annotator "NA"]
[PlyCount "55"]
[EventDate "2021.01.10"]
[EventType "swiss"]
[EventCountry "ISR"]
[SourceTitle "playchess.com"]
[Source "ChessBase"]
[SourceQuality "1"]
[TimeControl "40/5400+30:3600+30"]

1. d4 {[%emt 0:00:43]} Nf6 {[%emt 0:00:00]} 2. Nf3 {[%emt 0:01:56]} g6 {[%emt 0:00:00]} 3. Nbd2 {[%emt 0:00:40]} Bg7 {[%emt 0:00:00]} 4. e4 {[%emt 0:00:40]} d6 {[%emt 0:00:05]} 5. Bd3 {[%emt 0:00:12]} O-O {[%emt 0:00:09]} 6. O-O {[%emt 0:00:09]} e5 {[%emt 0:01:09]} 7. c3 {[%emt 0:00:11]} Nc6 {[%emt 0:00:11]} 8. dxe5 {[%emt 0:02:57]} Nxe5 {[%emt 0:02:26]} 9. Nxe5 {[%emt 0:00:10]} dxe5 {[%emt 0:00:05]} 10. Nc4 {[%emt 0:00:04]} Qe7 {[%emt 0:02:50]} 11. b3 {[%emt 0:04:47]} Rd8 {[%emt 0:02:46]} 12. Ba3 {[%emt 0:00:38]} Qe8 {[%emt 0:09:19]} 13. Qe2 {[%emt 0:02:50]} b6 {[%emt 0:05:08]} 14. Rfd1 {[%emt 0:04:00]} Ba6 {[%emt 0:08:55]} 15. f3 {[%emt 0:03:37]} Nh5 {[%emt 0:02:55]} 16. g3 {[%emt 0:00:14]} Qe6 {[%emt 0:05:40]} 17. Ne3 {[%emt 0:02:34]} Bxd3 {[%emt 0:03:06]} 18. Rxd3 {[%emt 0:01:26]} Rxd3 {[%emt 0:00:41]} 19. Qxd3 {[%emt 0:00:09]} Bh6 {[%emt 0:02:51]} 20. Rd1 {[%emt 0:06:58]} Qh3 {[%emt 0:15:20]} 21. Ng4 {[%emt 0:04:59]} Bg5 {[%emt 0:01:27]} 22. Qd7 {[%emt 0:05:21]} Kg7 {[%emt 0:01:19]} 23. Qxc7 {[%emt 0:01:35]} Re8 {[%emt 0:02:27]} 24. Rd7 {[%emt 0:04:07]} Kg8 {[%emt 0:03:29]} 25. Rxf7 {[%emt 0:12:27]} Rd8 {[%emt 0:02:57]} 26. Nh6+ {[%emt 0:01:13]} Bxh6 {[%emt 0:00:35]} 27. Qxd8+ {[%emt 0:00:08]} Kxf7 {[%emt 0:00:04]} 28. Qe7+ {[%emt 0:00:12]} 1-0

[Event "Israel Championship 2021"]
[Site "Haifa"]
[Date "2021.03.14"]
[Round "8.2"]
[White "Gorshtein, Ido"]
[Black "Parkhov, Yair"]
[Result "1/2-1/2"]
[ECO "D35"]
[WhiteElo "2387"]
[BlackElo "2407"]
[Annotator "ChessBase"]
[PlyCount "69"]
[EventDate "2021.01.10"]
[EventType "swiss"]
[EventCountry "ISR"]
[SourceTitle "playchess.com"]
[Source "ChessBase"]
[SourceQuality "1"]
[TimeControl "40/5400+30:3600+30"]

1. c4 {[%emt 0:00:00]} c6 {[%emt 0:00:00]} 2. Nc3 {[%emt 0:00:12]} d5 {[%emt 0:00:00]} 3. d4 {[%emt 0:00:02]} Nf6 {[%emt 0:00:00]} 4. Nf3 {[%emt 0:02:32]} e6 {[%emt 0:02:00]} 5. cxd5 {[%emt 0:00:23]} exd5 {[%emt 0:00:12]} 6. Bg5 {[%emt 0:01:29]} h6 {[%emt 0:00:19]} 7. Bh4 {[%emt 0:02:30]} Bf5 {[%emt 0:00:10]} 8. e3 {[%emt 0:02:37]} Nbd7 {[%emt 0:00:11]} 9. Bd3 {[%emt 0:00:45]} Bxd3 {[%emt 0:00:11]} 10. Qxd3 {[%emt 0:00:02]} Bd6 {[%emt 0:00:13]} 11. Bg3 {[%emt 0:00:21]} Bxg3 {[%emt 0:04:29]} 12. hxg3 {[%emt 0:00:02]} Qe7 {[%emt 0:01:23]} 13. Rb1 {[%emt 0:01:39]} a5 {[%emt 0:10:22]} 14. Nd2 {[%emt 0:05:51]} O-O {[%emt 0:00:24]} 15. f3 {[%emt 0:00:12]} h5 {[%emt 0:09:56]} 16. Kf2 {[%emt 0:00:44]} g6 {[%emt 0:00:17]} 17. Nb3 {[%emt 0:06:10]} Kg7 {[%emt 0:02:44]} 18. Nc1 {[%emt 0:00:26]} b5 {[%emt 0:05:27]} 19. Qd2 {[%emt 0:12:03]} Nb6 {[%emt 0:03:19]} 20. b3 {[%emt 0:00:22]} b4 {[%emt 0:07:21]} 21. N3e2 {[%emt 0:04:47]} Nc8 {[%emt 0:00:13]} 22. Nd3 {[%emt 0:01:16]} Nd6 {[%emt 0:00:14]} 23. Nc5 {[%emt 0:00:11]} Nf5 {[%emt 0:04:20]} 24. Nf4 {[%emt 0:03:37]} Rae8 {[%emt 0:03:26]} 25. Rbe1 {[%emt 0:00:16]} Qd6 {[%emt 0:03:01]} 26. Qd3 {[%emt 0:09:39]} Re7 {[%emt 0:04:09]} 27. Re2 {[%emt 0:06:50]} Rfe8 {[%emt 0:00:26]} 28. Rhe1 {[%emt 0:00:15]} Kg8 {[%emt 0:05:41]} 29. Qb1 {[%emt 0:14:30]} Nh6 {[%emt 0:10:55]} 30. Qc1 {[%emt 0:04:01]} g5 {[%emt 0:05:55]} 31. Nfd3 {[%emt 0:03:03]} Nhg4+ {[%emt 0:00:55]} 32. fxg4 {[%emt 0:02:09]} Nxg4+ {[%emt 0:00:08]} 33. Kg1 {[%emt 0:00:07]} Qxg3 {[%emt 0:00:20]} 34. Nf2 {[%emt 0:00:02]} f5 {[%emt 0:08:33]} 35. Ncd3 {[%emt 0:06:33]} 1/2-1/2

[Event "Israel Championship 2021"]
[Site "Haifa"]
[Date "2021.03.14"]
[Round "8.4"]
[White "Kobo, Ori"]
[Black "Sokolovsky, Yahli"]
[Result "1-0"]
[ECO "C77"]
[WhiteElo "2460"]
[BlackElo "2472"]
[Annotator "ChessBase"]
[PlyCount "65"]
[EventDate "2021.01.10"]
[EventType "swiss"]
[EventCountry "ISR"]
[SourceTitle "playchess.com"]
[Source "ChessBase"]
[SourceQuality "1"]
[TimeControl "40/5400+30:3600+30"]

1. e4 {[%emt 0:00:00]} e5 {[%emt 0:00:45]} 2. Nf3 {[%emt 0:00:00]} Nc6 {[%emt 0:00:03]} 3. Bb5 {[%emt 0:00:36]} a6 {[%emt 0:00:11]} 4. Ba4 {[%emt 0:00:07]} Nf6 {[%emt 0:00:25]} 5. d3 {[%emt 0:00:51]} d6 {[%emt 0:02:03]} 6. c4 {[%emt 0:02:32]} g6 {[%emt 0:04:20]} 7. Nc3 {[%emt 0:05:41]} Bg7 {[%emt 0:01:04]} 8. Nd5 {[%emt 0:09:48]} h6 {[%emt 0:05:22]} 9. Nb4 {[%emt 0:02:17]} Bd7 {[%emt 0:01:59]} 10. Nxc6 {[%emt 0:00:08]} bxc6 {[%emt 0:02:26]} 11. c5 {[%emt 0:03:35]} O-O {[%emt 0:04:37]} 12. O-O {[%emt 0:12:20]} Re8 {[%emt 0:03:18]} 13. Re1 {[%emt 0:09:49]} d5 {[%emt 0:17:02]} 14. b4 {[%emt 0:01:28]} a5 {[%emt 0:11:11]} 15. a3 {[%emt 0:03:03]} axb4 {[%emt 0:03:45]} 16. axb4 {[%emt 0:00:02]} dxe4 {[%emt 0:15:10]} 17. dxe4 {[%emt 0:00:10]} Nxe4 {[%emt 0:00:05]} 18. Bb2 {[%emt 0:00:12]} f5 {[%emt 0:01:24]} 19. Bb3+ {[%emt 0:00:38]} Be6 {[%emt 0:01:31]} 20. Bxe6+ {[%emt 0:01:51]} Rxe6 {[%emt 0:00:09]} 21. Qb3 {[%emt 0:01:04]} Kf7 {[%emt 0:00:12]} 22. Rxa8 {[%emt 0:05:08]} Qxa8 {[%emt 0:00:06]} 23. Bxe5 {[%emt 0:01:54]} Qc8 {[%emt 0:09:10]} 24. h4 {[%emt 0:07:55]} Qd7 {[%emt 0:07:10]} 25. Rd1 {[%emt 0:06:45]} Qe7 {[%emt 0:01:07]} 26. Rd3 {[%emt 0:05:46]} Qe8 {[%emt 0:06:21]} 27. Bxc7 {[%emt 0:02:48]} g5 {[%emt 0:00:02]} 28. Rd8 {[%emt 0:02:30]} Qe7 {[%emt 0:00:23]} 29. Qd3 {[%emt 0:03:31]} Nf6 {[%emt 0:00:45]} 30. hxg5 {[%emt 0:00:43]} Qxc7 {[%emt 0:01:50]} 31. gxf6 {[%emt 0:00:17]} Kxf6 {[%emt 0:00:01]} 32. Rd7 {[%emt 0:00:56]} Qf4 {[%emt 0:00:39]} 33. Qc3+ {[%emt 0:00:12]} 1-0

[Event "Israel Championship 2021"]
[Site "Haifa"]
[Date "2021.03.14"]
[Round "8.8"]
[White "Solomon, Asif"]
[Black "Rozen, Eytan"]
[Result "1-0"]
[ECO "D30"]
[WhiteElo "2356"]
[BlackElo "2399"]
[Annotator "ChessBase"]
[PlyCount "101"]
[EventDate "2021.01.10"]
[EventType "swiss"]
[EventCountry "ISR"]
[SourceTitle "playchess.com"]
[Source "ChessBase"]
[SourceQuality "1"]
[TimeControl "40/5400+30:3600+30"]

1. d4 {[%emt 0:00:00]} e6 {[%emt 0:00:00]} 2. c4 {[%emt 0:00:05]} c6 {[%emt 0:00:00]} 3. Nf3 {[%emt 0:02:59]} Nf6 {[%emt 0:00:45]} 4. e3 {[%emt 0:04:09]} a6 {[%emt 0:00:34]} 5. Bd3 {[%emt 0:01:20]} d5 {[%emt 0:00:13]} 6. b3 {[%emt 0:01:31]} Nbd7 {[%emt 0:01:29]} 7. O-O {[%emt 0:01:08]} b5 {[%emt 0:00:07]} 8. Nbd2 {[%emt 0:04:38]} Bd6 {[%emt 0:02:37]} 9. Bb2 {[%emt 0:04:22]} Qe7 {[%emt 0:09:27]} 10. Ne5 {[%emt 0:02:42]} Bb7 {[%emt 0:00:06]} 11. c5 {[%emt 0:02:25]} Bxe5 {[%emt 0:01:27]} 12. dxe5 {[%emt 0:00:07]} Ng8 {[%emt 0:00:01]} 13. b4 {[%emt 0:02:31]} a5 {[%emt 0:03:00]} 14. a3 {[%emt 0:01:13]} f6 {[%emt 0:00:14]} 15. f4 {[%emt 0:06:42]} Nh6 {[%emt 0:01:53]} 16. Qc2 {[%emt 0:06:03]} fxe5 {[%emt 0:03:28]} 17. Bxh7 {[%emt 0:11:33]} e4 {[%emt 0:05:31]} 18. Bg6+ {[%emt 0:01:11]} Kd8 {[%emt 0:00:38]} 19. h3 {[%emt 0:03:07]} Nf8 {[%emt 0:15:40]} 20. Bxe4 {[%emt 0:00:54]} dxe4 {[%emt 0:00:33]} 21. Nxe4 {[%emt 0:00:39]} Nf5 {[%emt 0:00:48]} 22. Rad1+ {[%emt 0:04:12]} Ke8 {[%emt 0:00:19]} 23. Rd3 {[%emt 0:04:00]} Rd8 {[%emt 0:02:34]} 24. Rfd1 {[%emt 0:02:43]} Rd5 {[%emt 0:05:02]} 25. Ng5 {[%emt 0:07:44]} Rxd3 {[%emt 0:01:09]} 26. Rxd3 {[%emt 0:00:09]} Nh7 {[%emt 0:00:27]} 27. e4 {[%emt 0:09:42]} Nxg5 {[%emt 0:00:55]} 28. exf5 {[%emt 0:00:12]} Ne4 {[%emt 0:03:26]} 29. fxe6 {[%emt 0:00:26]} Nf6 {[%emt 0:03:21]} 30. Rd6 {[%emt 0:04:42]} Rh6 {[%emt 0:00:48]} 31. f5 {[%emt 0:02:20]} Nd5 {[%emt 0:00:19]} 32. bxa5 {[%emt 0:03:51]} Qg5 {[%emt 0:02:02]} 33. Bc1 {[%emt 0:03:16]} Qg3 {[%emt 0:02:11]} 34. Qf2 {[%emt 0:01:25]} Rxh3 {[%emt 0:02:25]} 35. Qxg3 {[%emt 0:00:20]} Rxg3 {[%emt 0:00:01]} 36. Kh2 {[%emt 0:01:29]} Rg4 {[%emt 0:01:29]} 37. Kh3 {[%emt 0:00:10]} Ra4 {[%emt 0:00:30]} 38. Rd7 {[%emt 0:00:56]} b4 {[%emt 0:01:26]} 39. axb4 {[%emt 0:00:49]} Rxb4 {[%emt 0:00:21]} 40. Bg5 {[%emt 0:00:11]} Rb3+ {[%emt 0:00:25]} 41. g3 {[%emt 1:00:12]} Nf6 {[%emt 1:00:15]} 42. Rxg7 {[%emt 0:00:00]} Rxg3+ {[%emt 0:00:00]} 43. Kxg3 {[%emt 0:00:00]} Nh5+ {[%emt 0:00:00]} 44. Kg4 {[%emt 0:00:00]} Nxg7 {[%emt 0:00:00]} 45. Bh6 {[%emt 0:00:00]} Nh5 {[%emt 0:00:00]} 46. Kxh5 {[%emt 0:00:00]} Ba8 {[%emt 0:00:00]} 47. f6 {[%emt 0:00:00]} Kd8 {[%emt 0:00:00]} 48. f7 {[%emt 0:00:00]} Kc8 {[%emt 0:00:00]} 49. f8=Q+ {[%emt 0:00:00]} Kc7 {[%emt 0:00:00]} 50. Bf4+ {[%emt 0:00:00]} Kb7 {[%emt 0:00:00]} 51. Qb8+ {[%emt 0:00:00]} 1-0

[Event "Israel Championship 2021"]
[Site "Haifa"]
[Date "2021.03.14"]
[Round "8.9"]
[White "Tzidkiya, Yeshaayahu"]
[Black "Kochavi, Ori"]
[Result "0-1"]
[ECO "A08"]
[WhiteElo "2380"]
[BlackElo "2273"]
[Annotator "ChessBase"]
[PlyCount "68"]
[EventDate "2021.01.10"]
[EventType "swiss"]
[EventCountry "ISR"]
[SourceTitle "playchess.com"]
[Source "ChessBase"]
[SourceQuality "1"]
[TimeControl "40/5400+30:3600+30"]

1. Nf3 {[%emt 0:00:00]} d5 {[%emt 0:00:05]} 2. g3 {[%emt 0:00:00]} Nf6 {[%emt 0:00:03]} 3. Bg2 {[%emt 0:00:00]} e6 {[%emt 0:00:06]} 4. O-O {[%emt 0:00:05]} c5 {[%emt 0:10:25]} 5. d3 {[%emt 0:00:36]} Nc6 {[%emt 0:02:36]} 6. Na3 {[%emt 0:14:15]} Be7 {[%emt 0:01:46]} 7. Bf4 {[%emt 0:00:05]} O-O {[%emt 0:01:25]} 8. e4 {[%emt 0:08:00]} Qb6 {[%emt 0:10:07]} 9. e5 {[%emt 0:09:14]} Nd7 {[%emt 0:00:26]} 10. Rb1 {[%emt 0:01:10]} Rd8 {[%emt 0:07:35]} 11. c4 {[%emt 0:01:33]} Nf8 {[%emt 0:02:26]} 12. Qe2 {[%emt 0:06:57]} Nd4 {[%emt 0:09:23]} 13. Nxd4 {[%emt 0:00:50]} cxd4 {[%emt 0:00:04]} 14. b4 {[%emt 0:02:20]} a5 {[%emt 0:06:28]} 15. c5 {[%emt 0:06:42]} Qc6 {[%emt 0:01:18]} 16. b5 {[%emt 0:10:04]} Qxc5 {[%emt 0:00:03]} 17. Nc2 {[%emt 0:00:04]} a4 {[%emt 0:06:37]} 18. Bc1 {[%emt 0:08:33]} Qb6 {[%emt 0:04:45]} 19. Bb2 {[%emt 0:02:17]} Bc5 {[%emt 0:01:07]} 20. Ba3 {[%emt 0:07:03]} Bd7 {[%emt 0:02:11]} 21. Bxc5 {[%emt 0:03:29]} Qxc5 {[%emt 0:00:29]} 22. Rfc1 {[%emt 0:00:04]} Rdc8 {[%emt 0:00:09]} 23. Qd2 {[%emt 0:03:19]} Ng6 {[%emt 0:05:01]} 24. f4 {[%emt 0:00:59]} Qb6 {[%emt 0:00:55]} 25. Qb4 {[%emt 0:06:59]} Rc5 {[%emt 0:10:06]} 26. Qxd4 {[%emt 0:01:48]} Qc7 {[%emt 0:00:04]} 27. b6 {[%emt 0:01:28]} Qc6 {[%emt 0:00:04]} 28. Qf2 {[%emt 0:01:03]} Rc8 {[%emt 0:00:07]} 29. Rb2 {[%emt 0:00:44]} a3 {[%emt 0:00:03]} 30. Rb3 {[%emt 0:00:36]} Rxc2 {[%emt 0:00:06]} 31. Rxc2 {[%emt 0:00:02]} Qxc2 {[%emt 0:00:04]} 32. Qxc2 {[%emt 0:00:03]} Rxc2 {[%emt 0:00:05]} 33. Rxa3 {[%emt 0:00:03]} Rb2 {[%emt 0:01:41]} 34. Ra8+ {[%emt 0:00:04]} Nf8 {[%emt 0:00:04]} 0-1